fUSD/lending_fUSD_20250507
["ID","MTS","AMOUNT","RATE_DAILY","PERIOD"]
[360216796,1746628875190,-450.0,0.00019883,2]
[360216797,1746628875202,-450.0,0.00019883,2]
[360216798,1746628875211,-450.0,0.00019883,2]
[360216799,1746628875222,-226.1654275,0.00019883,2]
[360216800,1746628875234,-450.0,0.00019883,2]
[360216801,1746628875245,-497.01791057,0.00019883,2]
[360216802,1746628875255,-450.0,0.00019883,2]
[360216803,1746628875266,-49.68379512,0.00019883,2]
[360216804,1746628875279,-470.51883144,0.00019883,2]
[360216805,1746628875290,-450.0,0.00019883,2]
[360216806,1746628875301,-338.8977231,0.00019883,2]
[360216807,1746628875311,-450.0,0.00019883,2]
[360216808,1746628875320,-450.0,0.00019883,2]
[360216809,1746628875331,-450.0,0.00019883,2]
[360216810,1746628875341,-450.0,0.00019883,2]
[360216811,1746628875351,-39.64910797,0.00019883,2]
[360216812,1746628875363,-410.35089203,0.00019883,2]
[360216813,1746628875373,-150.90119192,0.00019883,2]
[360216814,1746628875389,-299.09880808,0.00019883,2]
[360216815,1746628875399,-450.0,0.00019883,2]
[360216816,1746628875407,-125.49499192,0.00019883,2]
[360216817,1746628875418,-374.50500808,0.00019883,2]
[360216818,1746628875427,-450.0,0.00019883,2]
[360216819,1746628875437,-450.0,0.00019883,2]
[360216820,1746628875448,-450.0,0.00019883,2]
[360216821,1746628875459,-450.0,0.00019883,2]
[360216822,1746628875468,-450.0,0.00019883,2]
[360216823,1746628875478,-450.0,0.00019883,2]
[360216824,1746628875489,-450.0,0.00019883,2]
[360216825,1746628875499,-450.0,0.00019883,2]
[360216826,1746628875508,-450.0,0.00019883,2]
[360216827,1746628875518,-283.63369192,0.00019883,2]
[360216828,1746628875533,-166.36630808,0.00019883,2]
[360216829,1746628875544,-450.0,0.00019883,2]
[360216830,1746628875555,-510.0,0.00019883,2]
[360216831,1746628875565,-450.0,0.00019883,2]
[360216832,1746628875574,-450.0,0.00019883,2]
[360216833,1746628875585,-487.77783203,0.00019883,2]
[360216834,1746628875595,-450.0,0.00019883,2]
[360216835,1746628875605,-374.90126075,0.00019883,2]
[360216836,1746628875616,-450.0,0.00019883,2]
[360216837,1746628875627,-450.0,0.00019883,2]
[360216838,1746628875636,-450.0,0.00019883,2]
[360216839,1746628875648,-450.0,0.00019883,2]
[360216840,1746628875657,-450.0,0.00019883,2]
[360216841,1746628875666,-450.0,0.00019883,2]
[360216842,1746628875676,-450.0,0.00019883,2]
[360216843,1746628875686,-450.0,0.00019883,2]
[360216844,1746628875695,-500.0,0.00019883,2]
[360216845,1746628875705,-450.0,0.00019883,2]
[360216846,1746628875715,-450.0,0.00019883,2]
[360216847,1746628875724,-450.0,0.00019883,2]
[360216848,1746628875733,-484.93719049,0.00019883,2]
[360216849,1746628875743,-292.66153218,0.00019883,2]
[360216850,1746628875752,-400.0,0.00019883,2]
[360216851,1746628875763,-450.0,0.00019883,2]
[360216852,1746628875772,-450.0,0.00019883,2]
[360216853,1746628875784,-507.56,0.00019883,2]
[360216854,1746628875794,-476.92221656,0.00019883,2]
[360216855,1746628875805,-450.0,0.00019883,2]
[360216856,1746628875815,-450.0,0.00019883,2]
[360216857,1746628875827,-450.0,0.00019883,2]
[360216858,1746628875837,-450.0,0.00019883,2]
[360216859,1746628875846,-450.0,0.00019883,2]
[360216860,1746628875855,-481.84253653,0.00019883,2]
[360216861,1746628875864,-450.0,0.00019883,2]
[360216862,1746628875876,-450.0,0.00019883,2]
[360216863,1746628875886,-450.0,0.00019883,2]
[360216864,1746628875895,-450.0,0.00019883,2]
[360216865,1746628875905,-450.0,0.00019883,2]
[360216866,1746628875915,-450.0,0.00019883,2]
[360216867,1746628875925,-2431.68,0.00019883,2]
[360216868,1746628875935,-450.0,0.00019883,2]
[360216869,1746628875944,-450.0,0.00019883,2]
[360216870,1746628875955,-450.0,0.00019883,2]
[360216871,1746628875967,-510.0,0.00019883,2]
[360216872,1746628875978,-450.0,0.00019883,2]
[360216873,1746628875987,-450.0,0.00019883,2]
[360216874,1746628875998,-450.0,0.00019883,2]
[360216875,1746628876008,-450.0,0.00019883,2]
[360216876,1746628876018,-536.0370058,0.00019883,2]
[360216877,1746628876028,-173.05301758,0.00019883,2]
[360216878,1746628876041,-276.94698242,0.00019883,2]
[360216879,1746628876051,-490.0,0.00019883,2]
[360216880,1746628876061,-497.39,0.00019883,2]
[360216881,1746628876072,-450.0,0.00019883,2]
[360216882,1746628876081,-450.0,0.00019883,2]
[360216883,1746628876091,-450.0,0.00019883,2]
[360216884,1746628876101,-450.0,0.00019883,2]
[360216885,1746628876112,-34.72868005,0.00019883,2]
[360216886,1746628876126,-415.27131995,0.00019883,2]
[360216887,1746628876135,-490.0,0.00019883,2]
[360216888,1746628876144,-450.0,0.00019883,2]
[360216889,1746628876154,-450.0,0.00019883,2]
[360216890,1746628876164,-450.0,0.00019883,2]
[360216891,1746628876174,-450.0,0.00019883,2]
[360216892,1746628876185,-450.0,0.00019883,2]
[360216893,1746628876196,-524.73521049,0.00019883,2]
[360216894,1746628876205,-450.0,0.00019883,2]
[360216895,1746628876216,-450.0,0.00019883,2]
[360216896,1746628876229,-448.57326956,0.00019883,2]
[360216897,1746628876241,-1.42673044,0.00019883,2]
[360216898,1746628876251,-490.0,0.00019883,2]
[360216899,1746628876261,-450.0,0.00019883,2]
[360216900,1746628876271,-450.0,0.00019883,2]
[360216901,1746628876282,-450.0,0.00019883,2]
[360216902,1746628876292,-450.0,0.00019883,2]
[360216903,1746628876301,-208.57326956,0.00019883,2]
[360216904,1746628876315,-244.04332496,0.00019883,2]
[360216905,1746628876326,-336.95667404,0.00019883,2]
[360216906,1746628876338,-113.04332596,0.00019883,2]
[360216907,1746628876348,-450.0,0.00019883,2]
[360216908,1746628876358,-586.74569545,0.00019883,2]
[360216909,1746628876368,-450.0,0.00019883,2]
[360216910,1746628876377,-450.0,0.00019883,2]
[360216911,1746628876387,-450.0,0.00019883,2]
[360216912,1746628876398,-450.0,0.00019883,2]
[360216913,1746628876408,-149.27664106,0.00019883,2]
[360216914,1746628876420,-116.36049591,0.00019883,2]
[360216915,1746628876430,-450.0,0.00019883,2]
[360216916,1746628876439,-450.0,0.00019883,2]
[360216917,1746628876449,-490.0,0.00019883,2]
[360216918,1746628876458,-490.0,0.00019883,2]
[360216919,1746628876468,-500.0,0.00019883,2]
[360216920,1746628876477,-156.96400007,0.00019883,2]
[360216921,1746628876487,-445.74116649,0.00019883,2]
[360216922,1746628876499,-4.25883351,0.00019883,2]
[360216923,1746628876509,-450.0,0.00019883,2]
[360216924,1746628876519,-450.0,0.00019883,2]
[360216925,1746628876530,-500.0,0.00019883,2]
[360216926,1746628876540,-450.0,0.00019883,2]
[360216927,1746628876550,-400.0,0.00019883,2]
[360216928,1746628876560,-450.0,0.00019883,2]
[360216929,1746628876570,-394.80682896,0.00019884,2]
[360216930,1746628876586,-55.19317104,0.00019884,2]
[360216931,1746628876596,-450.0,0.00019884,2]
[360216932,1746628876606,-450.0,0.00019884,2]
[360216933,1746628876617,-470.0,0.00019884,2]
[360216934,1746628876627,-450.0,0.00019884,2]
[360216935,1746628876636,-450.0,0.00019884,2]
[360216936,1746628876646,-450.0,0.00019884,2]
[360216937,1746628876656,-214.0104588,0.00019886,2]
[360216938,1746628876667,-109.86203263,0.00019887,2]
[360216939,1746628876678,-380.805461,0.00019887,2]
[360216940,1746628876691,-453.52250637,0.00019887,2]
[360216941,1746628876700,-2645.5431561,0.00019887,2]
[360216942,1746628876712,-151.0,0.00019887,2]
[360216943,1746628876728,-151.0,0.00019887,2]
[360216944,1746628876739,-151.52250637,0.00019887,2]
[360216945,1746628876750,-214.01045872,0.00019888,2]
[360216946,1746628876760,-214.01045872,0.00019889,2]
[360216947,1746628876770,-89.10843376,0.0001989,2]
[360216948,1746628876788,-291.69702724,0.0001989,2]
[360216949,1746628876798,-208.30297276,0.00019891,2]
[360216950,1746628876810,-5.70748596,0.00019891,2]
[360216951,1746628876821,-214.01045872,0.00019892,2]
[360216952,1746628876831,-214.01045872,0.00019894,2]
[360216953,1746628876841,-66.2715966,0.00019896,2]
[360216954,1746628876854,-383.7284034,0.00019896,2]
[360216955,1746628876864,-116.2715966,0.00019896,2]
[360216956,1746628876876,-333.7284034,0.00019896,2]
[360216957,1746628876886,-166.2715966,0.00019896,2]
[360216958,1746628876903,-283.7284034,0.00019896,2]
[360216959,1746628876912,-216.2715966,0.00019896,2]
[360216960,1746628876924,-172.71486251,0.00019896,2]
[360216961,1746628876936,-61.01354089,0.00019896,2]
[360216962,1746628876946,-438.98645911,0.00019896,2]
[360216963,1746628876958,-11.01354089,0.00019896,2]
[360216964,1746628876968,-450.0,0.00019896,2]
[360216965,1746628876978,-38.98645911,0.00019896,2]
[360216966,1746628876989,-411.01354089,0.00019896,2]
[360216967,1746628877000,-450.0,0.00019896,2]
[360216968,1746628877010,-513.49,0.00019896,2]
[360216969,1746628877020,-450.0,0.00019896,2]
[360216970,1746628877030,-450.0,0.00019896,2]
[360216971,1746628877039,-255.72242159,0.00019896,2]
[360216972,1746628877055,-450.0,0.00019896,2]
[360216973,1746628877068,-118.83969999,0.00019896,2]
[360216974,1746628877089,-500.0,0.00019873,2]
[360216975,1746628877288,-331.16030001,0.00019896,2]
[360216976,1746628877301,-168.83969999,0.00019896,2]
[360216977,1746628877318,-281.16030001,0.00019896,2]
[360216978,1746628877328,-234.41124554,0.00019896,2]
[360216979,1746628877347,-215.58875446,0.00019896,2]
[360216980,1746628877357,-284.41124554,0.00019896,2]
[360216981,1746628877369,-165.58875446,0.00019896,2]
[360216982,1746628877379,-334.41124554,0.00019896,2]
[360216983,1746628877392,-115.58875446,0.00019896,2]
[360216984,1746628877402,-384.41124554,0.00019897,2]
[360216985,1746628877413,-65.58875446,0.00019897,2]
[360216986,1746628877423,-434.41124554,0.00019897,2]
[360216987,1746628877435,-15.58875446,0.00019897,2]
[360216988,1746628877444,-450.0,0.00019897,2]
[360216989,1746628877454,-34.41124554,0.00019897,2]
[360216990,1746628877467,-415.58875446,0.00019897,2]
[360216991,1746628877476,-84.41124554,0.00019897,2]
[360216992,1746628877488,-365.58875446,0.00019897,2]
[360216993,1746628877498,-134.41124554,0.00019897,2]
[360216994,1746628877510,-315.58875446,0.00019897,2]
[360216995,1746628877519,-184.41124554,0.00019897,2]
[360216996,1746628877532,-265.58875446,0.00019897,2]
[360216997,1746628877541,-234.41124554,0.00019897,2]
[360216998,1746628877553,-215.58875446,0.00019897,2]
[360216999,1746628877562,-284.41124554,0.00019897,2]
[360217000,1746628877574,-286.29184478,0.00019897,2]
[360217001,1746628877583,-213.70815522,0.00019897,2]
[360217002,1746628877595,-299.52590478,0.00019897,2]
[360217003,1746628877606,-200.47409522,0.00019897,2]
[360217004,1746628877617,-249.52590478,0.00019897,2]
[360217005,1746628877627,-250.47409522,0.00019897,2]
[360217006,1746628877639,-199.52590478,0.00019897,2]
[360217007,1746628877649,-413.31537805,0.00019897,2]
[360217008,1746628877835,-36.68462195,0.00019897,2]
[360217009,1746628877845,-413.31537805,0.00019897,2]
[360217010,1746628877860,-36.68462195,0.00019897,2]
[360217011,1746628877870,-438.18375166,0.00019897,2]
[360217012,1746628877882,-11.81624834,0.00019897,2]
[360217013,1746628877892,-238.18375166,0.00019897,2]
[360217014,1746628877903,-277.45334615,0.00019897,2]
[360217015,1746628877913,-172.54665385,0.00019897,2]
[360217016,1746628877928,-277.45334615,0.00019897,2]
[360217017,1746628877938,-172.54665385,0.00019897,2]
[360217018,1746628877949,-277.45334615,0.00019897,2]
[360217019,1746628877959,-172.54665385,0.00019897,2]
[360217020,1746628877971,-277.45334615,0.00019897,2]
[360217021,1746628877980,-172.54665385,0.00019897,2]
[360217022,1746628877991,-277.45334615,0.00019897,2]
[360217023,1746628878002,-172.54665385,0.00019897,2]
[360217024,1746628878014,-157.45334615,0.00019897,2]
[360217025,1746628878023,-292.54665385,0.00019897,2]
[360217026,1746628878035,-157.45334615,0.00019897,2]
[360217027,1746628878044,-16.20149669,0.00019897,2]
[360217028,1746628878060,-433.79850331,0.00019897,2]
[360217029,1746628878069,-16.20149669,0.00019897,2]
[360217030,1746628878081,-433.79850331,0.00019897,2]
[360217031,1746628878090,-16.20149669,0.00019897,2]
[360217032,1746628878102,-433.79850331,0.00019897,2]
[360217033,1746628878111,-16.20149669,0.00019897,2]
[360217034,1746628878122,-433.79850331,0.00019897,2]
[360217035,1746628878131,-16.20149669,0.00019897,2]
[360217036,1746628878143,-433.79850331,0.00019897,2]
[360217037,1746628878153,-16.20149669,0.00019897,2]
[360217038,1746628878165,-433.79850331,0.00019897,2]
[360217039,1746628878174,-16.20149669,0.00019897,2]
[360217040,1746628878186,-433.79850331,0.00019897,2]
[360217041,1746628878195,-16.20149669,0.00019897,2]
[360217042,1746628878206,-433.79850331,0.00019897,2]
[360217043,1746628878215,-78.63094965,0.00019897,2]
[360217044,1746628878231,-371.36905035,0.00019897,2]
[360217045,1746628878240,-218.59912142,0.00019897,2]
[360217046,1746628878252,-269.79087858,0.00019897,2]
[360217047,1746628878262,-226.72001105,0.00019897,2]
[360217048,1746628878277,-223.27998895,0.00019897,2]
[360217049,1746628878287,-226.72001105,0.00019897,2]
[360217050,1746628878299,-223.27998895,0.00019897,2]
[360217051,1746628878308,-226.72001105,0.00019897,2]
[360217052,1746628878326,-223.27998895,0.00019897,2]
[360217053,1746628878335,-308.53038949,0.00019897,2]
[360217054,1746628878347,-141.46961051,0.00019897,2]
[360217055,1746628878356,-406.13049468,0.00019897,2]
[360217056,1746628878368,-43.86950532,0.00019897,2]
[360217057,1746628878377,-406.13049468,0.00019897,2]
[360217058,1746628878401,-43.86950532,0.00019897,2]
[360217059,1746628878412,-406.13049468,0.00019897,2]
[360217060,1746628878423,-43.86950532,0.00019897,2]
[360217061,1746628878433,-449.39493293,0.00019897,2]
[360217062,1746628878445,-0.60506707,0.00019897,2]
[360217063,1746628878454,-449.39493293,0.00019897,2]
[360217064,1746628878467,-0.60506707,0.00019897,2]
[360217065,1746628878476,-449.39493293,0.00019897,2]
[360217066,1746628878487,-0.60506707,0.00019897,2]
[360217067,1746628878497,-449.39493293,0.00019897,2]
[360217068,1746628878513,-0.60506707,0.00019897,2]
[360217069,1746628878522,-449.39493293,0.00019897,2]
[360217070,1746628878537,-0.60506707,0.00019897,2]
[360217071,1746628878547,-449.39493293,0.00019897,2]
[360217072,1746628878558,-0.60506707,0.00019897,2]
[360217073,1746628878567,-449.39493293,0.00019897,2]
[360217074,1746628878579,-0.60506707,0.00019897,2]
[360217075,1746628878589,-449.39493293,0.00019897,2]
[360217076,1746628878604,-0.60506707,0.00019897,2]
[360217077,1746628878615,-497.45809956,0.00019897,2]
[360217078,1746628878625,-7.02282676,0.00019897,2]
[360217079,1746628878644,-162.19048397,0.00019883,2]
[360217080,1746628878654,-188.1388748,0.00019897,2]
[360217081,1746628878664,-99.67064123,0.00019897,2]
[360217082,1746628878676,-361.86053403,0.00019897,2]
[360217083,1746628878686,-88.13946597,0.00019897,2]
[360217084,1746628878698,-361.86053403,0.00019897,2]
[360217085,1746628878707,-88.13946597,0.00019897,2]
[360217086,1746628878735,-361.86053403,0.00019897,2]
[360217087,1746628878745,-88.13946597,0.00019897,2]
[360217088,1746628878757,-361.86053403,0.00019897,2]
[360217089,1746628878767,-88.13946597,0.00019897,2]
[360217090,1746628878779,-361.86053403,0.00019897,2]
[360217091,1746628878788,-88.13946597,0.00019897,2]
[360217092,1746628878800,-361.86053403,0.00019897,2]
[360217093,1746628878810,-88.13946597,0.00019897,2]
[360217094,1746628878829,-361.86053403,0.00019897,2]
[360217095,1746628878838,-88.13946597,0.00019897,2]
[360217096,1746628878894,-361.86053403,0.00019897,2]
[360217097,1746628878904,-88.13946597,0.00019897,2]
[360217098,1746628878927,-361.86053403,0.00019897,2]
[360217099,1746628878937,-88.13946597,0.00019897,2]
[360217100,1746628878948,-361.86053403,0.00019897,2]
[360217101,1746628878958,-88.13946597,0.00019897,2]
[360217102,1746628878970,-361.86053403,0.00019897,2]
[360217103,1746628878980,-88.13946597,0.00019897,2]
[360217104,1746628878991,-361.86053403,0.00019897,2]
[360217105,1746628879001,-88.13946597,0.00019897,2]
[360217106,1746628879012,-361.86053403,0.00019897,2]
[360217107,1746628879022,-88.13946597,0.00019897,2]
[360217108,1746628879033,-361.86053403,0.00019897,2]
[360217109,1746628879043,-88.13946597,0.00019897,2]
[360217110,1746628879054,-361.86053403,0.00019897,2]
[360217111,1746628879063,-88.13946597,0.00019897,2]
[360217112,1746628879075,-361.86053403,0.00019897,2]
[360217113,1746628879085,-199.61448841,0.00019897,2]
[360217114,1746628879096,-250.38551159,0.00019897,2]
[360217115,1746628879105,-199.61448841,0.00019897,2]
[360217116,1746628879116,-250.38551159,0.00019897,2]
[360217117,1746628879126,-199.61448841,0.00019897,2]
[360217118,1746628879137,-300.38551159,0.00019897,2]
[360217119,1746628879146,-149.61448841,0.00019897,2]
[360217120,1746628879156,-51.21049729,0.00019897,2]
[360217121,1746628879166,-133.21843273,0.00019897,2]
[360217122,1746628879178,-316.78156727,0.00019897,2]
[360217123,1746628879187,-183.21843273,0.00019897,2]
[360217124,1746628879198,-266.78156727,0.00019897,2]
[360217125,1746628879207,-235.4027848,0.00019897,2]
[360217126,1746628879224,-214.5972152,0.00019897,2]
[360217127,1746628879234,-235.4027848,0.00019897,2]
[360217128,1746628879246,-214.5972152,0.00019897,2]
[360217129,1746628879255,-275.4027848,0.00019897,2]
[360217130,1746628879266,-174.5972152,0.00019897,2]
[360217131,1746628879275,-275.4027848,0.00019897,2]
[360217132,1746628879287,-174.5972152,0.00019897,2]
[360217133,1746628879296,-315.4027848,0.00019897,2]
[360217134,1746628879311,-134.5972152,0.00019897,2]
[360217135,1746628879320,-355.4027848,0.00019897,2]
[360217136,1746628879332,-450.0,0.00019897,2]
[360217137,1746628879343,-288.82875552,0.00019897,2]
[360217138,1746628879354,-516.06168231,0.00019897,2]
[360217139,1746628879365,-450.0,0.00019897,2]
[360217140,1746628879379,-371.38677737,0.00019897,2]
[360217141,1746628879389,-191.58823413,0.00019897,2]
[360217142,1746628879400,-258.41176587,0.00019897,2]
[360217143,1746628879410,-191.58823413,0.00019897,2]
[360217144,1746628879421,-258.41176587,0.00019897,2]
[360217145,1746628879431,-283.29489057,0.00019897,2]
[360217146,1746628879443,-166.70510943,0.00019897,2]
[360217147,1746628879453,-283.29489057,0.00019897,2]
[360217148,1746628879464,-166.70510943,0.00019897,2]
[360217149,1746628879473,-283.29489057,0.00019897,2]
[360217150,1746628879488,-166.70510943,0.00019897,2]
[360217151,1746628879498,-343.68740061,0.00019897,2]
[360217152,1746628879510,-106.31259939,0.00019897,2]
[360217153,1746628879519,-343.68740061,0.00019897,2]
[360217154,1746628879530,-106.31259939,0.00019897,2]
[360217155,1746628879540,-343.68740061,0.00019897,2]
[360217156,1746628879551,-146.31259939,0.00019897,2]
[360217157,1746628879560,-303.68740061,0.00019897,2]
[360217158,1746628879576,-146.31259939,0.00019897,2]
[360217159,1746628879585,-303.68740061,0.00019898,2]
[360217160,1746628879607,-34.57259939,0.00019898,2]
[360217161,1746628879616,-195.28246592,0.00019899,2]
[360217162,1746628879625,-163.22067301,0.00019899,2]
[360217163,1746628879635,-56.92426168,0.00019899,2]
[360217164,1746628879647,-428.17573832,0.00019899,2]
[360217165,1746628879656,-21.82426168,0.00019899,2]
[360217166,1746628879671,-450.0,0.00019899,2]
[360217167,1746628879683,-62.59573832,0.00019899,2]
[360217168,1746628879692,-179.61,0.00019899,2]
[360217169,1746628879702,-207.79426168,0.00019899,2]
[360217170,1746628879713,-242.20573832,0.00019899,2]
[360217171,1746628879723,-207.79426168,0.00019899,2]
[360217172,1746628879734,-242.20573832,0.00019899,2]
[360217173,1746628879743,-207.79426168,0.00019899,2]
[360217174,1746628879755,-3.39573832,0.00019899,2]
[360217175,1746628879764,-265.97463156,0.00019899,2]
[360217176,1746628879784,-184.02536844,0.00019899,2]
[360217177,1746628879794,-265.97463156,0.00019899,2]
[360217178,1746628879805,-450.0,0.00019899,2]
[360217179,1746628879822,-450.0,0.00019899,2]
[360217180,1746628879841,-450.0,0.00019896,2]
[360217181,1746628879852,-430.18951448,0.00019899,2]
[360217182,1746628879863,-450.0,0.00019899,2]
[360217183,1746628879875,-385.51585396,0.00019899,2]
[360217184,1746628879885,-64.48414604,0.00019899,2]
[360217185,1746628879906,-385.51585396,0.00019899,2]
[360217186,1746628879916,-64.48414604,0.00019899,2]
[360217187,1746628879933,-214.01045872,0.00019895,2]
[360217188,1746628879942,-235.98954128,0.00019899,2]
[360217189,1746628879954,-45.65631268,0.00019899,2]
[360217190,1746628879963,-404.34368732,0.00019899,2]
[360217191,1746628879975,-45.65631268,0.00019899,2]
[360217192,1746628879984,-174.87,0.00019899,2]
[360217193,1746628879994,-229.47368732,0.00019899,2]
[360217194,1746628880006,-220.52631268,0.00019899,2]
[360217195,1746628880015,-229.47368732,0.000199,2]
[360217196,1746628880027,-297.52631268,0.000199,2]
[360217197,1746628880036,-237.72841455,0.000199,2]
[360217198,1746628880054,-450.0,0.000199,2]
[360217199,1746628880065,-450.0,0.000199,2]
[360217200,1746628880076,-21.98804205,0.000199,2]
[360217201,1746628880085,-428.01195795,0.000199,2]
[360217202,1746628880098,-450.0,0.000199,2]
[360217203,1746628880108,-450.0,0.000199,2]
[360217204,1746628880119,-450.0,0.000199,2]
[360217205,1746628880131,-450.0,0.000199,2]
[360217206,1746628880142,-450.0,0.000199,2]
[360217207,1746628880159,-421.05370452,0.000199,2]
[360217208,1746628880168,-28.94629548,0.000199,2]
[360217209,1746628880179,-137.62298895,0.000199,2]
[360217210,1746628880189,-232.5710392,0.000199,2]
[360217211,1746628880199,-129.16988408,0.00019945,2]
[360217212,1746628880214,-450.0,0.00019945,2]
[360217213,1746628880242,-197.08503309,0.00019883,2]
[360217214,1746628880254,-272.91496691,0.00019883,2]
[360217215,1746628880264,-177.08503309,0.00019945,2]
[360217216,1746628880279,-123.74508283,0.00019945,2]
[360217217,1746628880288,-326.25491717,0.00019945,2]
[360217218,1746628880301,-450.0,0.00019945,2]
[360217219,1746628880313,-365.74508283,0.00019945,2]
[360217220,1746628880322,-155.83669967,0.00019949,2]
[360217221,1746628880334,-5.81130033,0.00019949,2]
[360217222,1746628880343,-444.18869967,0.00019954,2]
[360217223,1746628880355,-450.0,0.00019954,2]
[360217224,1746628880367,-450.0,0.00019954,2]
[360217225,1746628880379,-450.0,0.00019954,2]
[360217226,1746628880390,-450.0,0.00019954,2]
[360217227,1746628880401,-291.64,0.00019954,2]
[360217228,1746628880413,-13.40330033,0.00019954,2]
[360217229,1746628880423,-380.805461,0.00019967,2]
[360217230,1746628880433,-139.2834134,0.00019969,2]
[360217231,1746628880444,-241.5220476,0.00019969,2]
[360217232,1746628880454,-174.0472345,0.00019973,2]
[360217233,1746628880466,-325.9527655,0.00019973,2]
[360217234,1746628880475,-124.0472345,0.00019973,2]
[360217235,1746628880486,-63.7345019,0.00019973,2]
[360217236,1746628880496,-386.2654981,0.00019973,2]
[360217237,1746628880508,-113.7345019,0.00019973,2]
[360217238,1746628880518,-344.43661001,0.00019973,2]
[360217239,1746628880529,-155.56338999,0.00019973,2]
[360217240,1746628880539,-294.43661001,0.00019973,2]
[360217241,1746628880551,-205.56338999,0.00019973,2]
[360217242,1746628880560,-244.43661001,0.00019973,2]
[360217243,1746628880576,-255.56338999,0.00019973,2]
[360217244,1746628880586,-194.43661001,0.00019973,2]
[360217245,1746628880597,-305.56338999,0.00019973,2]
[360217246,1746628880607,-199.63661001,0.00019973,2]
[360217247,1746628880619,-300.36338999,0.00019973,2]
[360217248,1746628880629,-149.63661001,0.00019984,2]
[360217249,1746628880640,-231.16885099,0.00019984,2]
[360217250,1746628880650,-150.0,0.00019984,2]
[360217251,1746628880660,-68.83114901,0.00019984,2]
[360217252,1746628880671,-81.16885099,0.00019984,2]
[360217253,1746628880680,-200.0,0.00019984,2]
[360217254,1746628880689,-168.83114901,0.00019985,2]
[360217255,1746628880701,-122.52504444,0.00019985,2]
[360217256,1746628880710,-327.47495556,0.00019986,2]
[360217257,1746628880722,-450.0,0.00019986,2]
[360217258,1746628880733,-450.0,0.00019986,2]
[360217259,1746628880745,-491.63279988,0.00019986,2]
[360217260,1746628880757,-450.0,0.00019986,2]
[360217261,1746628880768,-450.0,0.00019986,2]
[360217262,1746628880780,-450.0,0.00019986,2]
[360217263,1746628880791,-450.0,0.00019986,2]
[360217264,1746628880993,-538.79762953,0.00019986,2]
[360217265,1746628881006,-450.0,0.00019986,2]
[360217266,1746628881019,-450.0,0.00019986,2]
[360217267,1746628881031,-450.0,0.00019986,2]
[360217268,1746628881042,-450.0,0.00019986,2]
[360217269,1746628881054,-500.0,0.00019986,2]
[360217270,1746628881066,-450.0,0.00019986,2]
[360217271,1746628881078,-450.0,0.00019986,2]
[360217272,1746628881089,-450.0,0.00019986,2]
[360217273,1746628881100,-450.0,0.00019986,2]
[360217274,1746628881118,-514.60505692,0.00019986,2]
[360217275,1746628881130,-450.0,0.00019986,2]
[360217276,1746628881141,-450.0,0.00019986,2]
[360217277,1746628881151,-450.0,0.00019986,2]
[360217278,1746628881162,-568.32237485,0.00019986,2]
[360217279,1746628881174,-450.0,0.00019986,2]
[360217280,1746628881185,-450.0,0.00019986,2]
[360217281,1746628881198,-450.0,0.00019986,2]
[360217282,1746628881211,-450.0,0.00019986,2]
[360217283,1746628881233,-450.0,0.00019883,2]
[360217284,1746628881247,-450.0,0.00019986,2]
[360217285,1746628881258,-450.0,0.00019986,2]
[360217286,1746628881271,-450.0,0.00019986,2]
[360217287,1746628899724,623.39,0.0001912,2]
[360217288,1746628966132,5003.5,0.00013699,2]
[360217289,1746628966717,5003.5,0.00013699,2]
[360217290,1746628967142,5003.5,0.00013699,2]
[360217291,1746628967690,5003.5,0.00013699,2]
[360217292,1746628968118,5003.5,0.00013699,2]
[360217293,1746628968632,5003.5,0.00013699,2]
[360217294,1746628969180,5003.5,0.00013699,2]
[360217295,1746628969744,5003.5,0.00013699,2]